fUST/lending_fUST_20240220
["ID","MTS","AMOUNT","RATE_DAILY","PERIOD"]
[314524153,1708404642591,-500.0,0.00021917,2]
[314524156,1708404642601,-357.91204103,0.00021917,2]
[314524158,1708404642611,-500.0,0.00021917,2]
[314524160,1708404642627,-616.48012052,0.00021917,2]
[314524162,1708404642636,-500.0,0.00021917,2]
[314524165,1708404642645,-500.0,0.00021917,2]
[314524168,1708404642654,-500.0,0.00021917,2]
[314524170,1708404642664,-500.0,0.00021917,2]
[314524172,1708404642675,-500.0,0.00021917,2]
[314524175,1708404642685,-500.0,0.00021917,2]
[314524177,1708404642694,-500.0,0.00021917,2]
[314524179,1708404642704,-1472.97,0.00021917,2]
[314524181,1708404642714,-500.0,0.00021917,2]
[314524183,1708404642723,-3765.2,0.00021917,2]
[314524185,1708404642733,-500.0,0.00021917,2]
[314524187,1708404642742,-500.0,0.00021917,2]
[314524189,1708404642751,-5028.34,0.00021917,2]
[314524191,1708404642760,-500.0,0.00021917,2]
[314524192,1708404642769,-500.0,0.00021917,2]
[314524194,1708404642779,-1123.7,0.00021917,2]
[314524197,1708404642788,-25085.55,0.00021917,2]
[314524199,1708404642797,-5058.64,0.00021917,2]
[314524201,1708404642806,-500.0,0.00021917,2]
[314524203,1708404642816,-500.0,0.00021917,2]
[314524205,1708404642827,-519.02,0.00021917,2]
[314524207,1708404642836,-500.0,0.00021917,2]
[314524209,1708404642846,-3775.44,0.00021917,2]
[314524211,1708404642858,-2695.0,0.00021917,2]
[314524212,1708404642868,-500.0,0.00021917,2]
[314524215,1708404642878,-500.0,0.00021917,2]
[314524217,1708404642887,-500.0,0.00021917,2]
[314524218,1708404642896,-500.0,0.00021917,2]
[314524221,1708404642905,-500.0,0.00021917,2]
[314524222,1708404642914,-500.0,0.00021917,2]
[314524224,1708404642923,-500.0,0.00021917,2]
[314524226,1708404642933,-500.0,0.00021917,2]
[314524228,1708404642942,-641.64302008,0.00021917,2]
[314524230,1708404642951,-500.21795266,0.00021917,2]
[314524232,1708404642960,-187.0489976,0.00021917,2]
[314524234,1708404642969,-500.0,0.00021917,2]
[314524236,1708404642978,-500.0,0.00021917,2]
[314524238,1708404642987,-500.0,0.00021917,2]
[314524240,1708404642997,-505.59237559,0.00021917,2]
[314524243,1708404643009,-500.0,0.00021917,2]
[314524244,1708404643018,-500.0,0.00021917,2]
[314524247,1708404643028,-500.0,0.00021917,2]
[314524249,1708404643038,-486.42933984,0.00021917,2]
[314524251,1708404643047,-500.0,0.00021917,2]
[314524253,1708404643056,-500.0,0.00021917,2]
[314524255,1708404643065,-35681.24,0.00021917,2]
[314524257,1708404643075,-753.03,0.00021917,2]
[314524259,1708404643084,-604.35,0.00021917,2]
[314524261,1708404643093,-1553.33,0.00021917,2]
[314524263,1708404643102,-500.0,0.00021917,2]
[314524265,1708404643112,-500.0,0.00021917,2]
[314524267,1708404643123,-500.0,0.00021917,2]
[314524269,1708404643133,-500.0,0.00021917,2]
[314524284,1708404643142,-500.0,0.00021917,2]
[314524287,1708404643278,-500.0,0.00021917,2]
[314524289,1708404643287,-668.64,0.00021917,2]
[314524291,1708404643296,-3969.06,0.00021917,2]
[314524293,1708404643306,-4593.79,0.00021917,2]
[314524295,1708404643315,-500.0,0.00021917,2]
[314524297,1708404643324,-501.93,0.00021917,2]
[314524299,1708404643333,-617.79,0.00021917,2]
[314524301,1708404643343,-500.0,0.00021917,2]
[314524303,1708404643352,-701.27,0.00021917,2]
[314524305,1708404643361,-701.27,0.00021917,2]
[314524307,1708404643372,-832.65,0.00021917,2]
[314524309,1708404643381,-701.27,0.00021917,2]
[314524311,1708404643391,-701.27,0.00021917,2]
[314524313,1708404643401,-1288.82,0.00021917,2]
[314524315,1708404643410,-701.27,0.00021917,2]
[314524317,1708404643419,-701.27,0.00021917,2]
[314524319,1708404643428,-500.0,0.00021917,2]
[314524321,1708404643438,-701.27,0.00021917,2]
[314524323,1708404643447,-701.27,0.00021917,2]
[314524325,1708404643457,-701.27,0.00021917,2]
[314524327,1708404643466,-701.27,0.00021917,2]
[314524329,1708404643475,-500.0,0.00021917,2]
[314524331,1708404643484,-701.27,0.00021917,2]
[314524333,1708404643494,-701.27,0.00021917,2]
[314524335,1708404643503,-701.27,0.00021917,2]
[314524337,1708404643512,-701.27,0.00021917,2]
[314524339,1708404643521,-500.0,0.00021917,2]
[314524341,1708404643530,-701.27,0.00021917,2]
[314524343,1708404643539,-701.27,0.00021917,2]
[314524345,1708404643548,-701.27,0.00021917,2]
[314524347,1708404643557,-506.2,0.00021917,2]
[314524349,1708404643565,-500.0,0.00021917,2]
[314524351,1708404643575,-500.0,0.00021917,2]
[314524353,1708404643584,-41856.52,0.00021917,2]
[314524355,1708404643594,-500.0,0.00021917,2]
[314524356,1708404643604,-500.0,0.00021917,2]
[314524359,1708404643614,-500.0,0.00021917,2]
[314524361,1708404643625,-500.0,0.00021917,2]
[314524363,1708404643634,-249.27883109,0.00021917,2]
[314524365,1708404643643,-500.0,0.00021917,2]
[314524367,1708404643653,-500.0,0.00021917,2]
[314524369,1708404643662,-3731.63,0.00021917,2]
[314524371,1708404643673,-500.0,0.00021917,2]
[314524373,1708404643683,-500.0,0.00021917,2]
[314524375,1708404643692,-500.0,0.00021917,2]
[314524377,1708404643701,-606.80456975,0.00021917,2]
[314524379,1708404643710,-500.0,0.00021917,2]
[314524381,1708404643719,-500.0,0.00021917,2]
[314524383,1708404643728,-500.0,0.00021917,2]
[314524385,1708404643737,-1906.41,0.00021917,2]
[314524386,1708404643746,-500.0,0.00021917,2]
[314524389,1708404643756,-500.0,0.00021917,2]
[314524391,1708404643767,-806.25,0.00021917,2]
[314524393,1708404643777,-944.16,0.00021917,2]
[314524395,1708404643787,-500.0,0.00021917,2]
[314524397,1708404643796,-500.0,0.00021917,2]
[314524398,1708404643805,-500.0,0.00021917,2]
[314524399,1708404643814,-1365.4,0.00021917,2]
[314524400,1708404643823,-669.33,0.00021917,2]
[314524401,1708404643832,-500.0,0.00021917,2]
[314524402,1708404643841,-500.0,0.00021917,2]
[314524403,1708404643849,-500.0,0.00021917,2]
[314524404,1708404643858,-500.0,0.00021917,2]
[314524405,1708404643867,-500.0,0.00021917,2]
[314524406,1708404643876,-2453.48,0.00021917,2]
[314524407,1708404643885,-500.0,0.00021917,2]
[314524408,1708404643893,-500.0,0.00021917,2]
[314524409,1708404643902,-945.09,0.00021917,2]
[314524410,1708404643911,-500.2659361,0.00021917,2]
[314524411,1708404643920,-674.07,0.00021917,2]
[314524412,1708404643929,-500.0,0.00021917,2]
[314524413,1708404643937,-500.0,0.00021917,2]
[314524414,1708404643946,-500.0,0.00021917,2]
[314524415,1708404643957,-350.63978889,0.00021917,2]
[314524417,1708404643966,-500.0,0.00021917,2]
[314524419,1708404643974,-500.0,0.00021917,2]
[314524421,1708404643984,-500.0,0.00021917,2]
[314524423,1708404643993,-500.0,0.00021917,2]
[314524425,1708404644002,-831.5,0.00021917,2]
[314524427,1708404644011,-500.0,0.00021917,2]
[314524429,1708404644020,-500.0,0.00021917,2]
[314524431,1708404644028,-500.0,0.00021917,2]
[314524433,1708404644037,-687.92,0.00021917,2]
[314524435,1708404644047,-526.57,0.00021917,2]
[314524437,1708404644056,-1437.35,0.00021917,2]
[314524439,1708404644066,-500.0,0.00021917,2]
[314524441,1708404644074,-500.0,0.00021917,2]
[314524443,1708404644083,-4911.88,0.00021917,2]
[314524445,1708404644095,-500.0,0.00021917,2]
[314524447,1708404644103,-1335.27,0.00021917,2]
[314524449,1708404644113,-500.0,0.00021917,2]
[314524451,1708404644122,-3575.96,0.00021917,2]
[314524453,1708404644131,-3575.96,0.00021917,2]
[314524455,1708404644140,-3575.96,0.00021917,2]
[314524457,1708404644149,-3575.96,0.00021917,2]
[314524459,1708404644158,-3575.96,0.00021917,2]
[314524461,1708404644168,-500.0,0.00021917,2]
[314524463,1708404644176,-3575.96,0.00021917,2]
[314524465,1708404644185,-667.09,0.00021917,2]
[314524467,1708404644194,-3575.96,0.00021917,2]
[314524469,1708404644203,-3575.96,0.00021917,2]
[314524471,1708404644212,-500.0,0.00021917,2]
[314524473,1708404644221,-3575.96,0.00021917,2]
[314524475,1708404644230,-3575.96,0.00021917,2]
[314524477,1708404644239,-3575.96,0.00021917,2]
[314524479,1708404644248,-3575.96,0.00021917,2]
[314524481,1708404644257,-3575.96,0.00021917,2]
[314524483,1708404644266,-3575.96,0.00021917,2]
[314524485,1708404644275,-3575.96,0.00021917,2]
[314524487,1708404644284,-500.0,0.00021917,2]
[314524489,1708404644297,-500.0,0.00021917,2]
[314524491,1708404644306,-3575.96,0.00021917,2]
[314524493,1708404644316,-3575.96,0.00021917,2]
[314524495,1708404644325,-500.0,0.00021917,2]
[314524497,1708404644334,-500.0,0.00021917,2]
[314524499,1708404644343,-500.0,0.00021917,2]
[314524501,1708404644352,-419.0443228,0.00021917,2]
[314524503,1708404644366,-317.35993342,0.00021917,2]
[314524505,1708404644375,-613.36,0.00021917,2]
[314524507,1708404644385,-500.0,0.00021917,2]
[314524509,1708404644394,-500.0,0.00021917,2]
[314524511,1708404644403,-588.91482314,0.00021917,2]
[314524513,1708404644412,-511.27433003,0.00021917,2]
[314524515,1708404644422,-500.0,0.00021917,2]
[314524517,1708404644431,-5836.428388,0.00021918,2]
[314524519,1708404644440,-205.356,0.00021988,2]
[314524521,1708404644449,-428.03452617,0.00022,2]
[314524523,1708404644458,-155.09305583,0.00022,2]
[314524525,1708404644468,-500.0,0.0002209,2]
[314524527,1708404644477,-500.0,0.0002209,2]
[314524529,1708404644486,-500.0,0.0002209,2]
[314524531,1708404644494,-500.0,0.0002209,2]
[314524533,1708404644503,-500.0,0.0002209,2]
[314524535,1708404644512,-500.0,0.0002209,2]
[314524537,1708404644521,-252.20884706,0.0002209,2]
[314524539,1708404644530,-701.27,0.0002209,2]
[314524541,1708404644539,-701.27,0.0002209,2]
[314524543,1708404644548,-701.27,0.0002209,2]
[314524545,1708404644557,-701.27,0.0002209,2]
[314524547,1708404644567,-701.27,0.0002209,2]
[314524549,1708404644576,-701.27,0.0002209,2]
[314524551,1708404644588,-701.43372589,0.0002209,2]
[314524553,1708404644597,-3575.96,0.0002209,2]
[314524555,1708404644606,-3575.96,0.0002209,2]
[314524557,1708404644616,-3575.96,0.0002209,2]
[314524559,1708404644626,-3575.96,0.0002209,2]
[314524561,1708404644635,-3575.96,0.0002209,2]
[314524563,1708404644644,-3575.96,0.0002209,2]
[314524566,1708404644654,-3575.97427655,0.0002209,2]
[314524568,1708404644663,-300.0,0.00022159,2]
[314524571,1708404644687,-273.19736919,0.0002219,2]
[314524573,1708404644697,-500.0,0.0002219,2]
[314524575,1708404644706,-500.0,0.0002219,2]
[314524577,1708404644716,-500.0,0.0002219,2]
[314524579,1708404644726,-500.0,0.0002219,2]
[314524582,1708404644736,-164.86675073,0.0002219,2]
[314524584,1708404644745,-500.0,0.0002219,2]
[314524586,1708404644755,-500.0,0.0002219,2]
[314524588,1708404644765,-500.0,0.0002219,2]
[314524590,1708404644775,-500.0,0.0002219,2]
[314524592,1708404644784,-462.09319311,0.0002219,2]
[314524594,1708404644794,-500.0,0.0002219,2]
[314524596,1708404644803,-500.0,0.0002219,2]
[314524598,1708404644812,-500.0,0.0002219,2]
[314524600,1708404644821,-500.0,0.0002219,2]
[314524602,1708404644831,-500.0,0.0002219,2]
[314524604,1708404644840,-500.0,0.0002219,2]
[314524606,1708404644849,-500.0,0.0002219,2]
[314524609,1708404644859,-500.0,0.0002219,2]
[314524611,1708404644869,-500.0,0.0002219,2]
[314524613,1708404644878,-500.0,0.0002219,2]
[314524615,1708404644888,-500.0,0.0002219,2]
[314524617,1708404644897,-500.0,0.0002219,2]
[314524619,1708404644907,-500.0,0.0002219,2]
[314524621,1708404644916,-200.0,0.0002219,2]
[314524623,1708404644926,-500.0,0.0002219,2]
[314524625,1708404644936,-500.0,0.0002219,2]
[314524627,1708404644945,-500.0,0.0002219,2]
[314524629,1708404644956,-500.0,0.0002219,2]
[314524631,1708404644965,-500.0,0.0002219,2]
[314524633,1708404644975,-296.81171669,0.0002219,2]
[314524635,1708404644986,-500.0,0.0002219,2]
[314524637,1708404644995,-500.0,0.0002219,2]
[314524639,1708404645006,-500.0,0.0002219,2]
[314524641,1708404645015,-494.66201028,0.0002219,2]
[314524650,1708404645089,-500.0,0.00021917,2]
[314524653,1708404645099,-5.33798972,0.0002219,2]
[314524655,1708404645108,-500.0,0.0002219,2]
[314524657,1708404645118,-500.0,0.0002219,2]
[314524659,1708404645127,-500.0,0.0002219,2]
[314524661,1708404645136,-500.0,0.0002219,2]
[314524663,1708404645145,-419.23807246,0.0002219,2]
[314524767,1708404646260,-500.0,0.00021917,2]
[314524768,1708404646270,-80.76192754,0.0002219,2]
[314524770,1708404646279,-500.0,0.0002219,2]
[314524772,1708404646288,-500.0,0.0002219,2]
[314524774,1708404646298,-500.0,0.0002219,2]
[314524776,1708404646307,-500.0,0.0002219,2]
[314524778,1708404646316,-500.0,0.0002219,2]
[314524780,1708404646324,-500.0,0.0002219,2]
[314524782,1708404646335,-500.0,0.0002219,2]
[314524784,1708404646344,-500.0,0.0002219,2]
[314524786,1708404646354,-500.0,0.0002219,2]
[314524788,1708404646364,-500.0,0.0002219,2]
[314524790,1708404646374,-500.0,0.0002219,2]
[314524792,1708404646384,-315.19365546,0.0002219,2]
[314524794,1708404646393,-500.0,0.0002219,2]
[314524796,1708404646403,-500.0,0.0002219,2]
[314524798,1708404646412,-500.0,0.0002219,2]
[314524800,1708404646421,-500.0,0.0002219,2]
[314524802,1708404646430,-300.0,0.0002219,2]
[314524804,1708404646439,-500.0,0.0002219,2]
[314524806,1708404646448,-500.0,0.0002219,2]
[314524808,1708404646457,-167.89626097,0.0002219,2]
[314524810,1708404646466,-500.0,0.00022191,2]
[314524812,1708404646475,-500.0,0.00022191,2]
[314524814,1708404646485,-500.0,0.00022191,2]
[314524816,1708404646494,-500.0,0.00022191,2]
[314524818,1708404646503,-500.0,0.00022191,2]
[314524820,1708404646512,-500.0,0.00022191,2]
[314524822,1708404646520,-500.0,0.00022191,2]
[314524824,1708404646529,-500.0,0.00022191,2]
[314524826,1708404646538,-500.0,0.00022191,2]
[314524828,1708404646547,-500.0,0.00022191,2]
[314524830,1708404646556,-500.0,0.00022191,2]
[314524832,1708404646565,-200.0,0.00022191,2]
[314524834,1708404646573,-500.0,0.00022191,2]
[314524836,1708404646587,-692.13,0.00022191,2]
[314524838,1708404646596,-433.86591432,0.00022191,2]
[314524840,1708404646604,-356.92342532,0.00022191,2]
[314524842,1708404646614,-500.0,0.00022191,2]
[314524845,1708404646625,-500.0,0.00022191,2]
[314524847,1708404646635,-1180.37,0.00022191,2]
[314524849,1708404646644,-500.0,0.00022191,2]
[314524851,1708404646652,-823.83,0.00022191,2]
[314524853,1708404646662,-500.0,0.00022191,2]
[314524855,1708404646671,-500.0,0.00022191,2]
[314524857,1708404646682,-633.41,0.00022191,2]
[314524859,1708404646691,-500.0,0.00022191,2]
[314524861,1708404646701,-500.0,0.00022191,2]
[314524863,1708404646710,-500.0,0.00022191,2]
[314524865,1708404646719,-447.65346599,0.00022191,2]
[314526726,1708405832410,-925.537554,0.00020027,2]
[314526727,1708405832422,-158.56704248,0.00020027,2]
[314526728,1708405832433,-258.0,0.00020127,2]
[314526729,1708405832444,-2046.30612195,0.00020128,2]
[314526731,1708405838430,-2953.69387805,0.00020128,2]
[314526732,1708405838440,-35168.6360635,0.00020128,2]
[314526733,1708405838450,-578.13785817,0.00020128,2]
[314526734,1708405838459,-5000.0,0.00020128,2]
[314526735,1708405838468,-4878.05177124,0.00020128,2]
[314526736,1708405838477,-5000.0,0.00020128,2]
[314526737,1708405838486,-2731.59367328,0.00021,2]
[314526738,1708405838496,-215.44,0.00021906,3]
[314526739,1708405838505,-334.1548573,0.00021916,2]
[314526740,1708405838515,-286.12858253,0.00021916,2]
[314526742,1708405838524,-31849.89286592,0.00021916,2]
[314526744,1708405838533,-500.0,0.00021917,2]
[314526746,1708405838541,-500.0,0.00021917,2]
[314526748,1708405838577,-500.0,0.00021917,2]
[314526750,1708405838587,-500.0,0.00021917,2]
[314526752,1708405838597,-526.92528367,0.00021917,2]
[314526754,1708405838606,-500.0,0.00021917,2]
[314526756,1708405838616,-500.0,0.00021917,2]
[314526758,1708405838625,-500.0,0.00021917,2]
[314526760,1708405838634,-509.75429243,0.00021917,2]
[314526762,1708405838644,-500.0,0.00021917,2]
[314526764,1708405838653,-500.0,0.00021917,2]
[314526766,1708405838663,-500.0,0.00021917,2]
[314526768,1708405838672,-500.0,0.00021917,2]
[314526769,1708405838681,-500.0,0.00021917,2]
[314526771,1708405838690,-500.0,0.00021917,2]
[314526773,1708405838700,-500.7625867,0.00021917,2]
[314526775,1708405838709,-500.30083189,0.00021917,2]
[314526777,1708405838718,-500.0,0.00021917,2]
[314526779,1708405838727,-500.0,0.00021917,2]
[314526781,1708405838737,-1000.0,0.00021917,2]
[314526783,1708405838746,-500.0,0.00021917,2]
[314526785,1708405838755,-501.64888846,0.00021917,2]
[314526787,1708405838765,-545.66,0.00021917,2]
[314526789,1708405838774,-500.0,0.00021917,2]
[314526791,1708405838784,-500.0,0.00021917,2]
[314526793,1708405838793,-500.31519978,0.00021917,2]
[314526795,1708405838803,-500.0,0.00021917,2]
[314526797,1708405838812,-553.16420902,0.00021917,2]
[314526799,1708405838821,-565.76980599,0.00021917,2]
[314526801,1708405838831,-226.50819615,0.00021917,2]
[314526803,1708405838840,-500.0,0.00021917,2]
[314526805,1708405838850,-500.0,0.00021917,2]
[314526807,1708405838860,-500.0,0.00021917,2]
[314526809,1708405838869,-500.0,0.00021917,2]
[314526811,1708405838879,-500.0,0.00021917,2]
[314526813,1708405838889,-155.5648918,0.00021917,2]
[314526815,1708405838899,-583.03533122,0.00021917,2]
[314526817,1708405838908,-500.0,0.00021917,2]
[314526819,1708405838918,-500.0,0.00021917,2]
[314526821,1708405838926,-500.0,0.00021917,2]
[314526823,1708405838936,-590.22,0.00021917,2]
[314526824,1708405838945,-500.0,0.00021917,2]
[314526826,1708405838954,-500.0,0.00021917,2]
[314526828,1708405838969,-500.0,0.00021917,2]
[314526830,1708405838978,-572.07,0.00021917,2]
[314526832,1708405838987,-500.0,0.00021917,2]
[314526834,1708405838996,-500.0,0.00021917,2]
[314526836,1708405839008,-187.59170986,0.00021917,2]
[314526838,1708405839017,-500.0,0.00021917,2]
[314526839,1708405839027,-616.55982733,0.00021917,2]
[314526841,1708405839036,-500.0,0.00021917,2]
[314526843,1708405839046,-500.0,0.00021917,2]
[314526845,1708405839055,-500.0,0.00021917,2]
[314526847,1708405839065,-500.0,0.00021917,2]
[314526849,1708405839074,-500.0,0.00021917,2]
[314526851,1708405839083,-500.0,0.00021917,2]
[314526853,1708405839092,-500.0,0.00021917,2]
[314526855,1708405839101,-500.0,0.00021917,2]
[314526857,1708405839110,-500.0,0.00021917,2]
[314526858,1708405839119,-497.82790785,0.00021917,2]
[314526860,1708405839129,-500.0,0.00021917,2]
[314526862,1708405839139,-500.0,0.00021917,2]
[314526864,1708405839148,-500.0,0.00021917,2]
[314526867,1708405839158,-204.91601608,0.00021917,2]
[314526868,1708405839167,-500.0,0.00021917,2]
[314526870,1708405839177,-500.0,0.00021917,2]
[314526872,1708405839186,-500.0,0.00021917,2]
[314526874,1708405839195,-500.0,0.00021917,2]
[314526876,1708405839204,-430.97652315,0.00021917,2]
[314526878,1708405839213,-1286.21,0.00021917,2]
[314526880,1708405839222,-500.0,0.00021917,2]
[314526882,1708405839231,-500.0,0.00021917,2]
[314526884,1708405839240,-500.0,0.00021917,2]
[314526886,1708405839250,-500.0,0.00021917,2]
[314526888,1708405839259,-159.29680634,0.00021917,2]
[314526890,1708405839269,-500.0,0.00021917,2]
[314526892,1708405839278,-500.0,0.00021917,2]
[314526894,1708405839287,-500.0,0.00021917,2]
[314526896,1708405839296,-500.0,0.00021917,2]
[314526898,1708405839305,-500.0,0.00021917,2]
[314526900,1708405839314,-500.0,0.00021917,2]
[314526902,1708405839323,-500.0,0.00021917,2]
[314526904,1708405839332,-500.0,0.00021917,2]
[314526906,1708405839341,-500.0,0.00021917,2]
[314526908,1708405839350,-540.0,0.00021917,2]
[314526910,1708405839359,-1590.26,0.00021917,2]
[314526911,1708405839368,-500.0,0.00021917,2]
[314526913,1708405839378,-500.0,0.00021917,2]
[314526915,1708405839388,-500.0,0.00021917,2]
[314526917,1708405839397,-500.0,0.00021917,2]
[314526919,1708405839407,-668.56,0.00021917,2]
[314526921,1708405839416,-500.0,0.00021917,2]
[314526923,1708405839425,-500.0,0.00021917,2]
[314526925,1708405839434,-500.0,0.00021917,2]
[314526927,1708405839444,-500.0,0.00021917,2]
[314526929,1708405839452,-500.0,0.00021917,2]
[314526931,1708405839462,-743.15,0.00021917,2]
[314526933,1708405839472,-500.0,0.00021917,2]
[314526935,1708405839481,-500.0,0.00021917,2]
[314526937,1708405839491,-500.0,0.00021917,2]
[314526939,1708405839501,-500.0,0.00021917,2]
[314526941,1708405839510,-500.0,0.00021917,2]
[314526943,1708405839519,-1390.55,0.00021917,2]
[314526945,1708405839528,-1176.05,0.00021917,2]
[314526947,1708405839538,-500.0,0.00021917,2]
[314526949,1708405839547,-614.25051564,0.00021917,2]
[314526951,1708405839556,-500.0,0.00021917,2]
[314526953,1708405839565,-500.0,0.00021917,2]
[314526955,1708405839574,-1544.29,0.00021917,2]
[314526957,1708405839584,-500.0,0.00021917,2]
[314526959,1708405839593,-500.0,0.00021917,2]
[314526961,1708405839602,-646.7,0.00021917,2]
[314526963,1708405839612,-500.0,0.00021917,2]
[314526965,1708405839621,-500.0,0.00021917,2]
[314526967,1708405839630,-500.0,0.00021917,2]
[314526968,1708405839639,-500.0,0.00021917,2]
[314526970,1708405839649,-500.0,0.00021917,2]
[314526972,1708405839658,-500.0,0.00021917,2]
[314526974,1708405839667,-500.0,0.00021917,2]
[314526976,1708405839677,-500.0,0.00021917,2]
[314526978,1708405839686,-615.11,0.00021917,2]
[314526980,1708405839695,-359.48313752,0.00021917,2]
[314526981,1708405839704,-500.0,0.00021917,2]
[314526983,1708405839713,-500.0,0.00021917,2]
[314526985,1708405839723,-500.0,0.00021917,2]
[314526987,1708405839732,-500.0,0.00021917,2]
[314526989,1708405839740,-500.0,0.00021917,2]
[314526991,1708405839749,-500.0,0.00021917,2]
[314526993,1708405839758,-500.0,0.00021917,2]
[314526995,1708405839767,-643.79,0.00021917,2]
[314526997,1708405839776,-581.74,0.00021917,2]
[314526999,1708405839785,-205.51223501,0.00021917,2]
[314527001,1708405839795,-2841.34,0.00021917,2]
[314527003,1708405839804,-1185.41,0.00021917,2]
[314527005,1708405839813,-686.73,0.00021917,2]
[314527007,1708405839822,-500.0,0.00021917,2]
[314527009,1708405839831,-500.0,0.00021917,2]
[314527011,1708405839840,-500.0,0.00021917,2]
[314527013,1708405839849,-500.0,0.00021917,2]
[314527015,1708405839858,-500.0,0.00021917,2]
[314527017,1708405839867,-722.25,0.00021917,2]
[314527019,1708405839876,-368.18852702,0.00021917,2]
[314527021,1708405839885,-500.0,0.00021917,2]
[314527023,1708405839894,-303.07864421,0.00021917,2]
[314527025,1708405839902,-353.59210513,0.00021917,2]
[314527027,1708405839911,-500.0,0.00021917,2]
[314527028,1708405839921,-500.0,0.00021917,2]
[314527030,1708405839929,-522.64,0.00021917,2]
[314527032,1708405839938,-500.0,0.00021917,2]
[314527034,1708405839947,-558.34197283,0.00021917,2]
[314527036,1708405839956,-500.0,0.00021917,2]
[314527038,1708405839970,-500.0,0.00021917,2]
[314527040,1708405839978,-500.0,0.00021917,2]
[314527042,1708405839987,-500.0,0.00021917,2]
[314527044,1708405839996,-570.96925073,0.00021917,2]
[314527046,1708405840006,-500.0,0.00021917,2]
[314527048,1708405840015,-500.0,0.00021917,2]
[314527050,1708405840024,-500.0,0.00021917,2]
[314527052,1708405840034,-500.0,0.00021917,2]
[314527054,1708405840044,-500.0,0.00021917,2]
[314527056,1708405840053,-500.0,0.00021917,2]
[314527058,1708405840062,-500.0,0.00021917,2]
[314527060,1708405840071,-500.0,0.00021917,2]
[314527062,1708405840080,-500.0,0.00021917,2]
[314527064,1708405840089,-500.0,0.00021917,2]
[314527066,1708405840098,-377.556933,0.00021917,2]
[314527068,1708405840107,-500.0,0.00021917,2]
[314527070,1708405840116,-500.0,0.00021917,2]
[314527072,1708405840125,-500.0,0.00021917,2]
[314527074,1708405840136,-500.0,0.00021917,2]
[314527076,1708405840145,-792.12,0.00021917,2]
[314527078,1708405840155,-500.0,0.00021917,2]
[314527080,1708405840164,-500.0,0.00021917,2]
[314527082,1708405840173,-500.0,0.00021917,2]
[314527084,1708405840183,-500.0,0.00021917,2]
[314527086,1708405840192,-500.0,0.00021917,2]
[314527088,1708405840202,-500.0,0.00021917,2]
[314527090,1708405840212,-500.0,0.00021917,2]
[314527092,1708405840222,-500.0,0.00021917,2]
[314527094,1708405840231,-500.0,0.00021917,2]
[314527096,1708405840240,-500.0,0.00021917,2]
[314527098,1708405840249,-500.0,0.00021917,2]
[314527100,1708405840258,-500.0,0.00021917,2]
[314527102,1708405840267,-500.0,0.00021917,2]
[314527104,1708405840276,-500.0,0.00021917,2]